fUST/lending_fUST_20240608
["ID","MTS","AMOUNT","RATE_DAILY","PERIOD"]
[328805068,1717804244469,-151.0,0.00019176,2]
[328805070,1717804244478,-151.0,0.00019176,2]
[328805071,1717804244487,-151.0,0.00019176,2]
[328805073,1717804244497,-151.0,0.00019176,2]
[328805076,1717804244506,-151.0,0.00019176,2]
[328805078,1717804244516,-151.0,0.00019176,2]
[328805079,1717804244525,-151.0,0.00019176,2]
[328805081,1717804244535,-189.311002,0.00019176,2]
[328805084,1717804244545,-189.311002,0.00019176,2]
[328805085,1717804244554,-189.311002,0.00019176,2]
[328805087,1717804244564,-189.311002,0.00019176,2]
[328805089,1717804244574,-189.311002,0.00019176,2]
[328805091,1717804244583,-151.0,0.00019176,2]
[328805094,1717804244594,-151.0,0.00019176,2]
[328805096,1717804244604,-151.0,0.00019176,2]
[328805098,1717804244613,-151.0,0.00019176,2]
[328805100,1717804244623,-151.0,0.00019176,2]
[328805102,1717804244632,-151.0,0.00019176,2]
[328805103,1717804244642,-151.0,0.00019176,2]
[328805106,1717804244652,-151.0,0.00019176,2]
[328805108,1717804244665,-151.0,0.00019176,2]
[328805109,1717804244678,-151.0,0.00019176,2]
[328805112,1717804244687,-151.0,0.00019176,2]
[328805113,1717804244696,-151.0,0.00019176,2]
[328805116,1717804244707,-151.0,0.00019176,2]
[328805118,1717804244718,-151.0,0.00019176,2]
[328805120,1717804244728,-151.0,0.00019176,2]
[328805122,1717804244739,-151.0,0.00019176,2]
[328805124,1717804244749,-151.0,0.00019176,2]
[328805126,1717804244759,-151.0,0.00019176,2]
[328805128,1717804244769,-151.0,0.00019176,2]
[328805130,1717804244779,-151.0,0.00019176,2]
[328805132,1717804244788,-151.0,0.00019176,2]
[328805134,1717804244798,-151.0,0.00019176,2]
[328805136,1717804244807,-826.601765,0.00019176,2]
[328805138,1717804244817,-826.601765,0.00019176,2]
[328805140,1717804244827,-151.0,0.00019176,2]
[328805142,1717804244836,-826.601765,0.00019176,2]
[328805144,1717804244848,-151.0,0.00019176,2]
[328805146,1717804244857,-826.601765,0.00019176,2]
[328805148,1717804244866,-826.601765,0.00019176,2]
[328805150,1717804244876,-151.0,0.00019176,2]
[328805152,1717804244885,-826.601765,0.00019176,2]
[328805154,1717804244894,-826.601765,0.00019176,2]
[328805156,1717804244903,-2820.295408,0.00019176,2]
[328805158,1717804244912,-826.601765,0.00019176,2]
[328805160,1717804244922,-2820.295408,0.00019176,2]
[328805162,1717804244932,-826.601765,0.00019176,2]
[328805164,1717804244941,-2820.295408,0.00019176,2]
[328805166,1717804244950,-826.601765,0.00019176,2]
[328805168,1717804244959,-2820.295408,0.00019176,2]
[328805181,1717804245063,-2820.295408,0.00019176,2]
[328805183,1717804245073,-2820.295408,0.00019176,2]
[328805185,1717804245083,-2820.295408,0.00019176,2]
[328805187,1717804245092,-2820.295408,0.00019176,2]
[328805189,1717804245102,-2820.295408,0.00019176,2]
[328805191,1717804245111,-2820.295408,0.00019176,2]
[328805193,1717804245121,-151.0,0.00019176,2]
[328805195,1717804245130,-151.0,0.00019176,2]
[328805197,1717804245139,-151.0,0.00019176,2]
[328805199,1717804245149,-151.0,0.00019176,2]
[328805201,1717804245159,-151.0,0.00019176,2]
[328805203,1717804245168,-151.0,0.00019176,2]
[328805205,1717804245177,-151.0,0.00019176,2]
[328805207,1717804245187,-151.0,0.00019176,2]
[328805209,1717804245196,-151.0,0.00019176,2]
[328805211,1717804245206,-151.0,0.00019176,2]
[328805213,1717804245215,-3924.424882,0.00019176,2]
[328805215,1717804245225,-3924.424882,0.00019176,2]
[328805217,1717804245234,-3924.424882,0.00019176,2]
[328805219,1717804245244,-151.0,0.00019176,2]
[328805221,1717804245253,-3924.424882,0.00019176,2]
[328805223,1717804245263,-151.0,0.00019176,2]
[328805225,1717804245274,-151.0,0.00019176,2]
[328805227,1717804245284,-2669.22104745,0.00019176,2]
[328805406,1717804409064,552.23614437,9.999e-05,2]
[328805407,1717804434211,372.50592829,9.999e-05,2]
[328805409,1717804469937,154.95351395,9.999e-05,2]
[328805410,1717804477487,3639.96681777,9.999e-05,2]
[328805411,1717804489811,224.22545081,9.999e-05,2]
[328805412,1717804493534,989.03563933,9.999e-05,2]
[328805415,1717804903834,5969.18885647,9.999e-05,2]
[328805416,1717804903876,2086.20199834,9.999e-05,2]
[328805426,1717805267313,250.0,0.00028,120]
[328805427,1717805291005,11711.45480594,0.0002799,120]
[328805505,1717805432545,-5834.68073492,0.00017822,2]
[328805880,1717805589428,1000.0,0.0002799,120]
[328805881,1717805707070,15806.89202668,2.197e-05,2]
[328805882,1717805934566,2000.0,0.00013537,2]
[328805883,1717805981186,2000.0,0.00013529,2]
[328805954,1717806271593,2070.99735755,0.00026027,120]
[328806093,1717806635423,-211.666805,0.00017489,2]
[328806095,1717806635434,-525.40575167,0.00017672,2]
[328806098,1717806635459,-3711.54338479,0.00017672,2]
[328806100,1717806635469,-10483.96462236,0.00017921,2]
[328806102,1717806635479,-287.13146109,0.00017921,7]
[328806104,1717806635489,-24900.0,0.00017922,2]
[328806106,1717806635498,-1062.46535094,0.00018034,2]
[328806108,1717806635508,-1705.66522496,0.00018134,2]
[328806110,1717806635518,-631.4460462,0.00018407,2]
[328806112,1717806635528,-153.0,0.000185,2]
[328806114,1717806635537,-205.1978842,0.000187,2]
[328806116,1717806635548,-156.59874069,0.00018984,3]
[328806117,1717806635559,-817.43293081,0.00019078,2]
[328806119,1717806635568,-205.1978842,0.000191,2]
[328806121,1717806635579,-5362.89361461,0.00019171,2]
[328806123,1717806635588,-1102.14153259,0.00019173,2]
[328806125,1717806635598,-221.9419172,0.00019174,2]
[328806151,1717806635840,-307.94366726,0.00019174,2]
[328806153,1717806635850,-540.60458538,0.00019174,2]
[328806263,1717806758354,2000.0,0.00013537,2]
[328806312,1717807097112,-929.65718209,0.00018127,2]
[328806314,1717807097136,-10483.96462236,0.00018174,2]
[328806315,1717807097162,-24900.0,0.00018175,2]
[328806316,1717807097185,-5860.252719,0.00018227,2]
[328806317,1717807097209,-396.477625,0.000189,2]
[328806333,1717807163007,292.43631508,0.00014381,2]
[328806334,1717807169589,190.1257195,0.00018073,2]
[328806338,1717807172145,4842.00659417,0.000189,2]
[328806339,1717807173297,1126.27264485,0.00014381,2]
[328806340,1717807179453,1155.40031062,9.999e-05,2]
[328806341,1717807180941,427.1678815,0.00014381,2]
[328806343,1717807193416,155.84027698,0.00018711,2]
[328806344,1717807197171,676.04494357,0.00018073,2]
[328806345,1717807200098,8853.76481214,0.000189,2]
[328806346,1717807203870,4236.27632862,0.00018822,2]
[328806347,1717807225886,286.55912829,0.000189,2]
[328806348,1717807229104,6769.53663618,0.00018978,2]
[328806349,1717807237234,692.26255018,9.999e-05,2]
[328806350,1717807239477,524.19655516,9.999e-05,2]
[328806351,1717807241667,411.42673703,9.999e-05,2]
[328806352,1717807241938,286.55912829,0.00018822,2]
[328806353,1717807244114,187.78108932,9.999e-05,2]
[328806354,1717807246893,837.83743989,0.00018821,2]
[328806355,1717807247935,552.23614437,9.999e-05,2]
[328806356,1717807256131,489.56838451,9.999e-05,2]
[328806357,1717807257989,286.55912829,0.00018822,2]
[328806358,1717807279853,286.55912829,0.00018822,2]
[328806359,1717807283329,1057.27366665,0.000189,2]
[328806361,1717807295870,286.55912829,0.00018822,2]
[328806363,1717807313970,2094.55480733,0.00018822,2]
[328806364,1717807321858,271.74959234,0.00018822,2]
[328806365,1717807337939,2094.55480733,0.00018822,2]
[328806366,1717807350994,489.90459384,0.00018976,2]
[328806367,1717807359932,2182.10356253,0.00018822,2]
[328806368,1717807372991,15386.52981641,0.00018113,2]
[328806369,1717807373017,9513.47018359,0.00018113,2]
[328806370,1717807374340,1100.27196223,0.00015,2]
[328806371,1717807420755,250.0,0.00018105,2]
[328806372,1717807422503,285.76830085,9.999e-05,2]
[328806373,1717807422742,632.52095723,0.00018,2]
[328806374,1717807423101,372.50592829,9.999e-05,2]
[328806375,1717807425714,1281.50835311,9.999e-05,2]
[328806376,1717807426718,156.91563212,9.999e-05,2]
[328806377,1717807434381,500.0,0.00018176,7]
[328806378,1717807434957,500.0,0.00018176,7]
[328806379,1717807435911,500.0,0.00018176,7]
[328806380,1717807436500,500.0,0.00018176,7]
[328806381,1717807437269,500.0,0.00018176,7]
[328806382,1717807437514,154.95351395,9.999e-05,2]
[328806383,1717807438004,500.0,0.00018176,7]
[328806384,1717807439396,500.0,0.00018176,7]
[328806385,1717807440360,500.0,0.00018176,7]
[328806386,1717807441117,500.0,0.00018176,7]
[328806387,1717807441919,500.0,0.00018176,7]
[328806388,1717807442730,500.0,0.00018176,7]
[328806389,1717807443477,500.0,0.00018176,7]
[328806390,1717807444242,500.0,0.00018176,7]
[328806391,1717807445030,500.0,0.00018176,7]
[328806392,1717807445789,500.0,0.00018176,7]
[328806393,1717807446545,500.0,0.00018176,7]
[328806394,1717807447327,500.0,0.00018176,7]
[328806395,1717807448463,412.06,0.00018176,7]
[328806396,1717807461137,329.062108,0.00018122,2]
[328806397,1717807469178,686.12053619,9.999e-05,2]
[328806398,1717807470505,7914.74227919,9.999e-05,2]
[328806428,1717807821476,553.16,0.00010959,2]
[328806460,1717807832440,-250.0,0.00017027,2]
[328806462,1717807832453,-287.92256871,0.00017027,2]
[328806463,1717807832466,-1582.54787789,0.00017027,2]
[328806464,1717807832477,-2036.10483651,0.00017027,2]
[328806465,1717807832487,-552.23614437,0.00017028,2]
[328806466,1717807832498,-187.78108932,0.00017029,2]
[328806467,1717807832508,-565.8511367,0.0001703,2]
[328806468,1717807832517,-10538.00320845,0.00017887,2]
[328806469,1717807832527,-59558.09165776,0.00017888,2]
[328806470,1717807832537,-6862.9062846,0.00017889,2]
[328806471,1717807832553,-2722.79116534,0.00017889,2]
[328806472,1717807832563,-277.77200866,0.0001789,2]
[328806473,1717807832575,-1586.21617874,0.0001789,2]
[328806474,1717807832586,-735.55079758,0.0001789,2]
[328806657,1717807844288,-8493.77840495,0.0001789,2]
[328806658,1717807844297,-3000.0,0.00017895,2]
[328806659,1717807844307,-10483.96462236,0.00017898,2]
[328806660,1717807844316,-632.52095723,0.00018,2]
[328806661,1717807844326,-782.4818114,0.00018362,2]
[328806662,1717807844336,-852.16235318,0.000189,2]
[328806663,1717807844345,-3117.66925744,0.00019064,2]
[328806675,1717807933819,-2036.10483651,0.00018899,2]
[328806676,1717807933845,-568.10823546,0.000189,2]
[328806677,1717807965279,834.0,0.00019,2]
[328806679,1717808123821,24380.78692803,0.00018126,2]
[328806711,1717809032792,-164.531054,0.00017701,2]
[328806712,1717809032801,-7560.09518403,0.00017842,2]
[328806714,1717809032813,-386.01217285,0.00017842,2]
[328806718,1717809032886,-2591.89585157,0.00017842,2]
[328806719,1717809032896,-1715.2985261,0.00017843,2]
[328806720,1717809032906,-10483.96462236,0.00017914,2]
[328806721,1717809032915,-24900.0,0.00017915,2]
[328806722,1717809032924,-718.92476032,0.00018892,2]
[328806723,1717809032936,-378.73882364,0.000189,2]
[328806724,1717809032946,-20007.41969212,0.00019061,2]
[328806831,1717809043079,-503.96475741,0.00019061,2]
[328806865,1717809046863,-5902.24019042,0.00019061,2]
[328806866,1717809046874,-1072.31984709,0.00019063,2]
[328806867,1717809046885,-109.67297207,0.00019064,2]
[328806868,1717809046895,-725.13573948,0.00019076,2]
[328806870,1717809046904,-725.13573948,0.00019077,2]
[328806872,1717809046914,-725.13573948,0.00019077,2]
[328806873,1717809046923,-725.13573948,0.00019078,2]
[328806874,1717809046933,-725.13573948,0.00019078,2]
[328806875,1717809046944,-2000.0,0.00019078,2]
[328806876,1717809046954,-239.9134,0.0001908,2]
[328806877,1717809046963,-1000.0,0.00019104,2]
[328806878,1717809046972,-2112.86517201,0.00019153,2]
[328806879,1717809046982,-189.0,0.00019164,3]
[328806880,1717809046991,-567.0,0.00019166,3]
[328806881,1717809047002,-303.15870369,0.00019172,2]
[328806882,1717809047011,-285.73167299,0.00019172,2]
[328806883,1717809047021,-156.86835668,0.00019172,2]
[328806884,1717809047031,-1281.12811487,0.00019172,2]
[328806885,1717809047040,-302.40695396,0.00019173,2]
[328806886,1717809047052,-247.03908741,0.00019173,2]
[328806887,1717809047062,-302.37794164,0.00019173,2]
[328806888,1717809047073,-263.94164731,0.00019173,2]
[328806889,1717809047085,-238.76353746,0.00019174,2]
[328806890,1717809047095,-317.32399469,0.00019174,2]
[328806891,1717809047106,-154.95351395,0.00019174,2]
[328806892,1717809047116,-186.74233784,0.00019174,2]
[328806893,1717809047126,-407.18852088,0.00019174,2]
[328806894,1717809047140,-1500.37733008,0.00019174,2]
[328806895,1717809047151,-721.95297279,0.00019174,2]
[328806896,1717809047161,-154.9690062,0.00019174,2]
[328806897,1717809047172,-216.20948756,0.00019174,2]
[328806898,1717809047182,-1226.10202512,0.00019174,2]
[328806899,1717809047193,-1689.82993633,0.00019174,2]
[328806900,1717809047202,-692.04147036,0.00019174,2]
[328806901,1717809047214,-524.03056772,0.00019174,2]
[328806902,1717809047224,-411.24399415,0.00019174,2]
[328806903,1717809047234,-296.86150005,0.00019174,2]
[328806904,1717809047244,-406.98328074,0.00019174,2]
[328806905,1717809047255,-2394.77842552,0.00019174,2]
[328806906,1717809047268,-1910.49735366,0.00019174,2]
[328806907,1717809047277,-86.84558736,0.00019174,2]
[328807103,1717810536136,10000.0,0.00025,60]
[328807106,1717810549943,10000.0,0.00023,30]
[328807107,1717810571030,10000.0,0.00025192,90]
[328807108,1717810583983,10000.0,0.00023,30]
[328807116,1717810598064,10000.0,0.00023,30]
[328807124,1717810946960,4272.82568555,0.0001083,2]
[328807167,1717811432902,-1974.43123359,0.000176,2]
[328807169,1717811432912,-167.216866,0.00017824,2]
[328807171,1717811432925,-24900.0,0.00017843,2]
[328807173,1717811432935,-10485.7490764,0.00017898,2]
[328807175,1717811432944,-631.752985,0.00018316,2]
[328807176,1717811432953,-516.518,0.00018502,2]
[328807178,1717811432963,-219.805,0.00018502,2]
[328807180,1717811432972,-284.6073717,0.000187,2]
[328807182,1717811432984,-153.0,0.000187,2]
[328807184,1717811432994,-153.0,0.000187,2]
[328807185,1717811433003,-326.4,0.00018943,3]
[328807186,1717811433013,-157.46753823,0.00018982,3]
[328807187,1717811433022,-11138.17106031,0.00019,2]
[328807215,1717811438819,-7676.32893969,0.00019,2]
[328807216,1717811438830,-1219.77374592,0.00019067,2]
[328807217,1717811438841,-168.23633758,0.00019077,2]
[328807218,1717811438857,-168.23633756,0.00019077,2]
[328807219,1717811438867,-168.23633756,0.00019078,2]
[328807220,1717811438877,-168.23633756,0.00019078,2]
[328807221,1717811438889,-168.23633756,0.00019078,2]
[328807222,1717811438899,-385.33,0.00019168,3]
[328807223,1717811438909,-68.57183315,0.00019174,2]
[328807224,1717811438918,-190.61789588,0.00019174,2]
[328807225,1717811438929,-685.91650968,0.00019174,2]
[328807226,1717811438939,-10534.77335951,0.00019174,2]
[328807227,1717811438949,-2408.71611034,0.00019175,2]
[328807228,1717811438959,-463.911571,0.00019175,2]
[328807229,1717811438969,-463.911571,0.00019175,2]
[328807230,1717811438978,-8186.69288084,0.00019176,7]
[328807231,1717811438988,-551.81200251,0.00019176,2]
[328807232,1717811438998,-187.67212941,0.00019176,2]
[328807233,1717811439008,-4665.62089036,0.00019176,2]
[328807234,1717811439017,-8849.99896668,0.00019176,2]
[328807235,1717811439028,-155.95767785,0.00019176,2]
[328807236,1717811439039,-2034.53689983,0.00019176,2]
[328807237,1717811439050,-2763.22163269,0.00019176,2]
[328807238,1717811439060,-155.05664531,0.00019176,2]
[328807239,1717811439070,-175.68843639,0.00019176,2]
[328807240,1717811439080,-154.98884124,0.00019176,2]
[328807241,1717811439091,-157.52337488,0.00019176,2]
[328807242,1717811439102,-1103.21705045,0.00019176,2]
[328807243,1717811439113,-223.4890843,0.00019176,2]
[328807244,1717811439123,-151.0,0.00019176,2]
[328807245,1717811439133,-151.0,0.00019176,2]
[328807246,1717811439144,-151.0,0.00019176,2]
[328807247,1717811439154,-151.0,0.00019176,2]
[328807248,1717811439164,-151.0,0.00019176,2]
[328807249,1717811439174,-1412.132519,0.00019176,2]
[328807250,1717811439184,-1135.62360365,0.00019176,2]
[328807251,1717811439198,-276.50891535,0.00019176,2]
[328807252,1717811439209,-156.19610383,0.00019176,2]
[328807253,1717811439219,-3006.078854,0.00019176,2]
[328807254,1717811439229,-276.80226586,0.00019176,2]
[328807271,1717811442814,-151.0,0.00019175,2]
[328807272,1717811442824,-2729.27658814,0.00019176,2]
[328807273,1717811442834,-414.110821,0.00019176,2]
[328807274,1717811442843,-414.110821,0.00019176,2]
[328807276,1717811442857,-151.0,0.00019176,2]
[328807278,1717811442866,-151.0,0.00019176,2]
[328807279,1717811442875,-151.0,0.00019176,2]
[328807280,1717811442885,-151.0,0.00019176,2]
[328807281,1717811442898,-151.0,0.00019176,2]
[328807282,1717811442909,-151.0,0.00019176,2]
[328807283,1717811442918,-151.0,0.00019176,2]
[328807284,1717811442929,-241.717299,0.00019176,2]
[328807285,1717811442939,-241.717299,0.00019176,2]
[328807286,1717811442948,-241.717299,0.00019176,2]
[328807287,1717811442957,-241.717299,0.00019176,2]
[328807288,1717811442967,-151.0,0.00019176,2]
[328807289,1717811442976,-151.0,0.00019176,2]
[328807290,1717811442985,-151.0,0.00019176,2]
[328807291,1717811442995,-151.0,0.00019176,2]
[328807292,1717811443007,-151.0,0.00019176,2]
[328807293,1717811443017,-151.0,0.00019176,2]
[328807294,1717811443027,-463.911571,0.00019176,2]
[328807295,1717811443036,-411.34230203,0.00019176,2]
[328807296,1717811443048,-52.56926897,0.00019176,2]
[328807297,1717811443059,-463.911571,0.00019176,2]
[328807298,1717811443069,-463.911571,0.00019176,2]
[328807299,1717811443078,-2120.15435773,0.00019177,2]
[328807300,1717811443088,-200.30096632,0.00019177,2]
[328807303,1717811443099,-1417.74604636,0.00019177,2]
[328807305,1717811443109,-151.0,0.00019177,2]
[328807307,1717811443118,-151.0,0.00019177,2]
[328807309,1717811443129,-151.0,0.00019177,2]
[328807310,1717811443138,-203.634321,0.00019177,2]
[328807311,1717811443148,-151.0,0.00019177,2]
[328807312,1717811443158,-151.0,0.00019177,2]
[328807313,1717811443167,-151.0,0.00019177,2]
[328807314,1717811443177,-151.0,0.00019177,2]
[328807315,1717811443187,-151.0,0.00019177,2]
[328807316,1717811443196,-151.0,0.00019177,2]
[328807317,1717811443206,-151.0,0.00019177,2]
[328807318,1717811443215,-151.0,0.00019177,2]
[328807319,1717811443225,-1412.132519,0.00019177,2]
[328807320,1717811443234,-1412.132519,0.00019177,2]
[328807321,1717811443244,-1412.132519,0.00019177,2]
[328807322,1717811443254,-1412.132519,0.00019177,2]
[328807323,1717811443264,-3006.078854,0.00019177,2]
[328807324,1717811443274,-3006.078854,0.00019177,2]
[328807325,1717811443284,-3006.078854,0.00019177,2]
[328807327,1717811443293,-3006.078854,0.00019177,2]
[328807328,1717811443303,-149.58369744,0.00019177,2]
[328807337,1717811443783,-151.0,0.00019176,2]
[328807339,1717811443793,-151.0,0.00019176,2]
[328807340,1717811443802,-40.98661946,0.00019177,2]
[328807343,1717811444093,-223.5405041,0.00019177,2]
[328807344,1717811444103,-185.71848794,0.00019177,2]
[328807417,1717812348430,154.95351395,9.999e-05,2]
[328807450,1717812633055,-154.95351395,0.00017703,2]
[328807452,1717812633066,-10539.6485585,0.00017703,2]
[328807455,1717812633075,-24900.0,0.00017704,2]
[328807456,1717812633085,-1067.30202768,0.00018134,2]
[328807458,1717812633095,-566.2255995,0.00018234,2]
[328807460,1717812633105,-631.46139314,0.0001827,2]
[328807461,1717812633116,-255.35105092,0.000189,2]
[328807463,1717812633125,-3711.54338479,0.00018911,2]
[328807465,1717812633134,-299.2,0.00018957,3]
[328807467,1717812633143,-153.7444608,0.000191,2]
[328807468,1717812633153,-385.8818022,0.000191,2]
[328807470,1717812633162,-155.941554,0.000191,2]
[328807472,1717812633172,-1106.01164267,0.00019119,2]
[328807474,1717812633181,-373.72,0.00019164,3]
[328807475,1717812633190,-553.85543371,0.00019172,2]
[328807476,1717812633200,-2042.5049633,0.00019172,2]
[328807477,1717812633209,-188.2754351,0.00019173,2]
[328807478,1717812633219,-1588.64206355,0.00019173,2]
[328807479,1717812633228,-33166.87591885,0.00019174,2]
[328807480,1717812633240,-1193.72138822,0.00019174,2]
[328807481,1717812633251,-273.73371823,0.00019174,2]
[328807490,1717812639199,-797.46,0.00019174,2]
[328807491,1717812639211,-4177.00552693,0.00019174,2]
[328807492,1717812639336,-15877.49335412,0.00019174,2]
[328807704,1717812644860,-4071.80175141,0.00019174,2]
[328807706,1717812644875,-1950.06062804,0.00019176,2]
[328807709,1717812644891,-2096.44043637,0.00019176,2]
[328807711,1717812644904,-11392.60570379,0.00019176,2]
[328807714,1717812644919,-3803.81794942,0.00019176,2]
[328807721,1717812647104,-409.62136791,0.00019176,2]
[328807722,1717812647118,-10116.40028279,0.00019176,2]
[328807723,1717812647128,-6890.89128242,0.00019176,2]
[328807724,1717812647139,-7227.06818959,0.00019178,7]
[328807725,1717812647149,-4093.34644043,0.00019178,7]
[328807726,1717812647159,-500.0,0.00019178,2]
[328807727,1717812647170,-500.0,0.00019178,2]
[328807728,1717812647180,-500.0,0.00019178,2]
[328807729,1717812647189,-500.0,0.00019178,2]
[328807730,1717812647198,-500.0,0.00019178,2]
[328807731,1717812647208,-500.0,0.00019178,2]
[328807732,1717812647218,-500.0,0.00019178,2]
[328807733,1717812647228,-500.0,0.00019178,2]
[328807734,1717812647237,-265.58899316,0.00019178,2]
[328807735,1717812647246,-500.0,0.00019178,2]
[328807736,1717812647256,-500.0,0.00019178,2]
[328807737,1717812647265,-500.0,0.00019178,2]
[328807738,1717812647274,-350.0,0.00019178,2]
[328807739,1717812647283,-500.0,0.00019178,2]
[328807740,1717812647294,-500.0,0.00019178,2]
[328807741,1717812647304,-500.0,0.00019178,2]
[328807742,1717812647315,-500.0,0.00019178,2]
[328807743,1717812647324,-366.14402103,0.00019178,2]
[328807744,1717812647333,-448.88656136,0.00019178,2]
[328807745,1717812647342,-500.0,0.00019178,2]
[328807746,1717812647352,-500.0,0.00019178,2]
[328807747,1717812647361,-500.0,0.00019178,2]
[328807748,1717812647374,-542.9660958,0.00019178,2]
[328807749,1717812647384,-500.0,0.00019178,2]
[328807750,1717812647393,-500.0,0.00019178,2]
[328807751,1717812647403,-500.0,0.00019178,2]
[328807752,1717812647415,-500.0,0.00019178,2]
[328807753,1717812647425,-500.0,0.00019178,2]
[328807754,1717812647437,-500.0,0.00019178,2]
[328807755,1717812647450,-500.0,0.00019178,2]
[328807756,1717812647461,-500.0,0.00019178,2]
[328807757,1717812647471,-500.0,0.00019178,2]
[328807758,1717812647482,-500.0,0.00019178,2]
[328807759,1717812647491,-200.0,0.00019178,2]
[328807760,1717812647501,-328.10956849,0.00019178,2]
[328807761,1717812647512,-500.0,0.00019178,2]
[328807762,1717812647522,-500.0,0.00019178,2]
[328807763,1717812647532,-500.0,0.00019178,2]
[328807764,1717812647542,-585.49029472,0.00019178,2]
[328807765,1717812647552,-500.0,0.00019178,2]
[328807766,1717812647562,-500.0,0.00019178,2]
[328807767,1717812647572,-500.0,0.00019178,2]
[328807768,1717812647582,-500.0,0.00019178,2]
[328807769,1717812647592,-571.14469875,0.00019178,2]
[328807770,1717812647602,-500.0,0.00019178,2]
[328807771,1717812647612,-500.0,0.00019178,2]
[328807772,1717812647623,-500.0,0.00019178,2]
[328807773,1717812647633,-500.0,0.00019178,2]
[328807774,1717812647643,-500.0,0.00019178,2]
[328807775,1717812647652,-500.0,0.00019178,2]
[328807776,1717812647662,-500.0,0.00019178,2]
[328807777,1717812647672,-500.0,0.00019178,2]
[328807778,1717812647682,-500.0,0.00019178,2]
[328807779,1717812647692,-500.0,0.00019178,2]
[328807780,1717812647701,-500.0,0.00019178,2]
[328807781,1717812647711,-500.0,0.00019178,2]
[328807782,1717812647722,-500.0,0.00019178,2]
[328807783,1717812647732,-500.0,0.00019178,2]
[328807784,1717812647742,-500.0,0.00019178,2]
[328807785,1717812647751,-500.0,0.00019178,2]
[328807786,1717812647761,-500.0,0.00019178,2]
[328807787,1717812647771,-500.0,0.00019178,2]
[328807788,1717812647780,-500.0,0.00019178,2]
[328807789,1717812647792,-500.0,0.00019178,2]
[328807790,1717812647803,-500.0,0.00019178,2]
[328807791,1717812647813,-500.0,0.00019178,2]
[328807792,1717812647823,-500.0,0.00019178,2]
[328807793,1717812647832,-500.0,0.00019178,2]
[328807794,1717812647842,-500.0,0.00019178,2]
[328807795,1717812647852,-500.0,0.00019178,2]
[328807796,1717812647862,-500.0,0.00019178,2]
[328807797,1717812647872,-500.0,0.00019178,2]
[328807798,1717812647883,-540.55989107,0.00019178,2]
[328807799,1717812647892,-568.96213926,0.00019178,2]
[328807800,1717812647902,-500.0,0.00019178,2]
[328807801,1717812647911,-646.46839597,0.00019178,2]
[328807802,1717812647920,-162.0,0.00019178,2]
[328807803,1717812647930,-500.0,0.00019178,2]
[328807804,1717812647940,-500.0,0.00019178,2]
[328807805,1717812647949,-500.0,0.00019178,2]
[328807806,1717812647958,-197.13148774,0.00019178,2]
[328807807,1717812647968,-353.42005062,0.00019178,2]
[328807808,1717812647978,-500.0,0.00019178,2]
[328807809,1717812647987,-500.0,0.00019178,2]
[328807810,1717812647997,-500.0,0.00019178,2]
[328807811,1717812648006,-500.0,0.00019178,2]
[328807812,1717812648015,-500.0,0.00019178,2]
[328807813,1717812648025,-500.0,0.00019178,2]
[328807814,1717812648035,-500.0,0.00019178,2]
[328807815,1717812648045,-482.44721566,0.00019178,2]
[328807816,1717812648082,-17.55278434,0.00019178,2]
[328807817,1717812648091,-500.0,0.00019178,2]
[328807818,1717812648101,-500.0,0.00019178,2]
[328807819,1717812648110,-391.70698749,0.00019178,2]
[328807820,1717812648119,-500.0,0.00019178,2]
[328807821,1717812648130,-500.0,0.00019178,2]
[328807822,1717812648140,-500.0,0.00019178,2]